[Event "Titled Tuesday Blitz March 15 Early 2022"]
[White "Ansh M Shah"]
[Black "Pranav Anand"]
[WhiteFideId "25033379"]
[BlackFideId "46626786"]
[WhiteElo "1819"]
[BlackElo "2259"]
[Result "0-1"]
[Round "01"]
[TimeControl "180+1"]
[Date "2022.03.15"]
[WhiteClock "0:00:09"]
[BlackClock "0:01:52"]

1. d4 {[%clk 0:02:58]}  Nf6 {[%clk 0:02:59]} 2. c4 {[%clk 0:02:48]}  b6 {[%clk 0:02:59]} 3. Nf3 {[%clk 0:02:48]}  Bb7 {[%clk 0:02:59]} 4. g3 {[%clk 0:02:48]}  e6 {[%clk 0:02:59]} 5. Bg2 {[%clk 0:02:48]}  Bb4+ {[%clk 0:02:59]} 6. Bd2 {[%clk 0:02:48]}  Be7 {[%clk 0:02:59]} 7. O-O {[%clk 0:02:48]}  O-O {[%clk 0:03:00]} 8. Nc3 {[%clk 0:02:48]}  d5 {[%clk 0:03:00]} 9. Rc1 {[%clk 0:02:46]}  a6 {[%clk 0:03:00]} 10. Ne5 {[%clk 0:02:45]}  Nbd7 {[%clk 0:02:59]} 11. Bg5 {[%clk 0:02:43]}  c6 {[%clk 0:02:54]} 12. Nxd7 {[%clk 0:02:38]}  Qxd7 {[%clk 0:02:52]} 13. cxd5 {[%clk 0:02:30]}  exd5 {[%clk 0:02:27]} 14. Qb3 {[%clk 0:02:16]}  b5 {[%clk 0:02:27]} 15. Rfd1 {[%clk 0:01:59]}  Rfe8 {[%clk 0:02:24]} 16. Bxf6 {[%clk 0:01:56]}  Bxf6 {[%clk 0:02:24]} 17. e4 {[%clk 0:01:57]}  Rad8 {[%clk 0:02:20]} 18. exd5 {[%clk 0:01:43]}  cxd5 {[%clk 0:02:20]} 19. a4 {[%clk 0:01:43]}  Bc6 {[%clk 0:02:17]} 20. axb5 {[%clk 0:01:40]}  axb5 {[%clk 0:02:18]} 21. Na2 {[%clk 0:01:16]}  Be7 {[%clk 0:02:17]} 22. Nb4 {[%clk 0:01:02]}  Bb7 {[%clk 0:02:18]} 23. Rc2 {[%clk 0:00:57]}  Qd6 {[%clk 0:02:02]} 24. Nd3 {[%clk 0:00:55]}  Bf6 {[%clk 0:02:00]} 25. Qxb5 {[%clk 0:00:40]}  Ba6 {[%clk 0:01:59]} 26. Qc5 {[%clk 0:00:28]}  Bxd3 {[%clk 0:01:55]} 27. Rxd3 {[%clk 0:00:12]}  Re1+ {[%clk 0:01:55]} 28. Bf1 {[%clk 0:00:12]}  Qe6 {[%clk 0:01:54]} 29. Qc7 {[%clk 0:00:09]}  Qh3 {[%clk 0:01:52]} 0-1


[Site "https://www.chess.com"]

[Event "Titled Tuesday Blitz March 15 Early 2022"]
[White "Atakhan, Abtin"]
[Black "Sanchez, Robert"]
[WhiteFideId "22502203"]
[BlackFideId "2034360"]
[WhiteElo "2119"]
[BlackElo "2277"]
[Result "1-0"]
[Round "01"]
[TimeControl "180+1"]
[Date "2022.03.15"]
[WhiteClock "0:00:23"]
[BlackClock "0:00:03"]

1. c4 {[%clk 0:02:59]}  e6 {[%clk 0:02:58]} 2. g3 {[%clk 0:02:58]}  d5 {[%clk 0:02:57]} 3. Nf3 {[%clk 0:02:59]}  Nf6 {[%clk 0:02:57]} 4. Bg2 {[%clk 0:02:59]}  Be7 {[%clk 0:02:58]} 5. O-O {[%clk 0:02:59]}  O-O {[%clk 0:02:58]} 6. b3 {[%clk 0:03:00]}  d4 {[%clk 0:02:58]} 7. Bb2 {[%clk 0:02:59]}  c5 {[%clk 0:02:58]} 8. e3 {[%clk 0:02:58]}  Nc6 {[%clk 0:02:58]} 9. exd4 {[%clk 0:02:58]}  cxd4 {[%clk 0:02:53]} 10. Re1 {[%clk 0:02:58]}  a5 {[%clk 0:02:50]} 11. a3 {[%clk 0:02:52]}  Bc5 {[%clk 0:02:49]} 12. Ne5 {[%clk 0:02:48]}  Qd6 {[%clk 0:02:43]} 13. Nxc6 {[%clk 0:02:38]}  bxc6 {[%clk 0:02:44]} 14. d3 {[%clk 0:02:38]}  e5 {[%clk 0:02:36]} 15. Nd2 {[%clk 0:02:38]}  Bg4 {[%clk 0:02:30]} 16. Qc2 {[%clk 0:02:31]}  Rfe8 {[%clk 0:02:22]} 17. Ne4 {[%clk 0:02:12]}  Nxe4 {[%clk 0:02:21]} 18. Rxe4 {[%clk 0:02:12]}  Bf5 {[%clk 0:02:15]} 19. Re2 {[%clk 0:02:13]}  Ra7 {[%clk 0:02:08]} 20. Rae1 {[%clk 0:02:11]}  Rae7 {[%clk 0:02:07]} 21. Bc1 {[%clk 0:02:05]}  Bd7 {[%clk 0:01:48]} 22. f4 {[%clk 0:01:50]}  Bg4 {[%clk 0:01:16]} 23. Re4 {[%clk 0:01:49]}  exf4 {[%clk 0:00:41]} 24. Bxf4 {[%clk 0:01:46]}  Qd7 {[%clk 0:00:37]} 25. Qb2 {[%clk 0:01:29]}  Bf5 {[%clk 0:00:31]} 26. Rxe7 {[%clk 0:01:25]}  Rxe7 {[%clk 0:00:32]} 27. Qd2 {[%clk 0:01:04]}  Bxa3 {[%clk 0:00:29]} 28. Qxa5 {[%clk 0:01:01]}  Rxe1+ {[%clk 0:00:20]} 29. Qxe1 {[%clk 0:01:02]}  Bxd3 {[%clk 0:00:16]} 30. Qa5 {[%clk 0:01:01]}  Qe7 {[%clk 0:00:16]} 31. Qa8+ {[%clk 0:00:55]}  Qf8 {[%clk 0:00:16]} 32. Qxc6 {[%clk 0:00:52]}  h6 {[%clk 0:00:13]} 33. Bd5 {[%clk 0:00:49]}  Qb4 {[%clk 0:00:11]} 34. Qe8+ {[%clk 0:00:46]}  Kh7 {[%clk 0:00:11]} 35. Bxf7 {[%clk 0:00:45]}  Qf8 {[%clk 0:00:04]} 36. Qxf8 {[%clk 0:00:39]}  Bxf8 {[%clk 0:00:05]} 37. Be5 {[%clk 0:00:33]}  Bc5 {[%clk 0:00:05]} 38. b4 {[%clk 0:00:33]}  Bxb4 {[%clk 0:00:05]} 39. Bxd4 {[%clk 0:00:34]}  g6 {[%clk 0:00:04]} 40. Bd5 {[%clk 0:00:33]}  Bf5 {[%clk 0:00:04]} 41. c5 {[%clk 0:00:32]}  g5 {[%clk 0:00:04]} 42. c6 {[%clk 0:00:30]}  Bd6 {[%clk 0:00:03]} 43. Kf2 {[%clk 0:00:26]}  Kg6 {[%clk 0:00:03]} 44. Kf3 {[%clk 0:00:25]}  h5 {[%clk 0:00:03]} 45. Be4 {[%clk 0:00:23]} 1-0


[Site "https://www.chess.com"]

[Event "Titled Tuesday Blitz March 15 Early 2022"]
[White "Baskin, Robert"]
[Black "Bogumil, Tatiana"]
[WhiteFideId "24662402"]
[BlackFideId "4110579"]
[WhiteElo "2488"]
[BlackElo "1761"]
[Result "1-0"]
[Round "01"]
[TimeControl "180+1"]
[Date "2022.03.15"]
[WhiteClock "0:01:07"]
[BlackClock "0:00:01"]

1. d4 {[%clk 0:02:59]}  Nf6 {[%clk 0:02:59]} 2. c4 {[%clk 0:02:58]}  c5 {[%clk 0:02:57]} 3. d5 {[%clk 0:02:57]}  b5 {[%clk 0:02:57]} 4. cxb5 {[%clk 0:02:57]}  a6 {[%clk 0:02:58]} 5. bxa6 {[%clk 0:02:58]}  Bxa6 {[%clk 0:02:58]} 6. Nc3 {[%clk 0:02:58]}  d6 {[%clk 0:02:55]} 7. e4 {[%clk 0:02:57]}  Bxf1 {[%clk 0:02:53]} 8. Kxf1 {[%clk 0:02:58]}  Nbd7 {[%clk 0:02:46]} 9. g3 {[%clk 0:02:58]}  g6 {[%clk 0:02:47]} 10. Kg2 {[%clk 0:02:58]}  Bg7 {[%clk 0:02:47]} 11. Nf3 {[%clk 0:02:58]}  O-O {[%clk 0:02:48]} 12. a4 {[%clk 0:02:58]}  Qb6 {[%clk 0:02:47]} 13. Qe2 {[%clk 0:02:47]}  Qa6 {[%clk 0:02:31]} 14. Nb5 {[%clk 0:02:40]}  Rfb8 {[%clk 0:02:27]} 15. Ra3 {[%clk 0:02:39]}  Ne8 {[%clk 0:02:19]} 16. Re1 {[%clk 0:02:34]}  Rb7 {[%clk 0:02:04]} 17. Bg5 {[%clk 0:02:33]}  Ndf6 {[%clk 0:01:58]} 18. Nd2 {[%clk 0:02:20]}  Nc7 {[%clk 0:01:54]} 19. Nxc7 {[%clk 0:02:20]}  Qxe2 {[%clk 0:01:54]} 20. Rxe2 {[%clk 0:02:20]}  Rxc7 {[%clk 0:01:54]} 21. Nc4 {[%clk 0:02:20]}  Rb7 {[%clk 0:01:52]} 22. a5 {[%clk 0:02:08]}  h6 {[%clk 0:01:46]} 23. Bd2 {[%clk 0:02:04]}  Ne8 {[%clk 0:01:33]} 24. Bc3 {[%clk 0:02:02]}  Nc7 {[%clk 0:01:32]} 25. Bxg7 {[%clk 0:01:33]}  Kxg7 {[%clk 0:01:32]} 26. e5 {[%clk 0:01:33]}  Nxd5 {[%clk 0:00:55]} 27. exd6 {[%clk 0:01:32]}  exd6 {[%clk 0:00:55]} 28. Nxd6 {[%clk 0:01:32]}  Rba7 {[%clk 0:00:53]} 29. Nc4 {[%clk 0:01:30]}  Nc7 {[%clk 0:00:46]} 30. Re7 {[%clk 0:01:25]}  Nb5 {[%clk 0:00:40]} 31. Rae3 {[%clk 0:01:17]}  Kf6 {[%clk 0:00:25]} 32. R7e5 {[%clk 0:01:07]}  Rc7 {[%clk 0:00:15]} 33. Nb6 {[%clk 0:01:07]}  Rxa5 {[%clk 0:00:01]} 34. Nd5+ {[%clk 0:01:07]} 1-0


[Site "https://www.chess.com"]

[Event "Titled Tuesday Blitz March 15 Early 2022"]
[White "Bettalli, Francesco"]
[Black "Riazantsev, Alexander"]
[WhiteFideId "2816453"]
[BlackFideId "4125029"]
[WhiteElo "2216"]
[BlackElo "2595"]
[Result "0-1"]
[Round "01"]
[TimeControl "180+1"]
[Date "2022.03.15"]
[WhiteClock "0:02:16"]
[BlackClock "0:02:28"]

1. d4 {[%clk 0:02:57]}  Nf6 {[%clk 0:02:59]} 2. Nc3 {[%clk 0:02:58]}  d5 {[%clk 0:02:58]} 3. Bf4 {[%clk 0:02:59]}  c5 {[%clk 0:02:57]} 4. e3 {[%clk 0:02:59]}  cxd4 {[%clk 0:02:57]} 5. exd4 {[%clk 0:02:59]}  a6 {[%clk 0:02:58]} 6. Nf3 {[%clk 0:03:00]}  Nc6 {[%clk 0:02:58]} 7. Be2 {[%clk 0:03:00]}  Bf5 {[%clk 0:02:58]} 8. O-O {[%clk 0:03:00]}  e6 {[%clk 0:02:58]} 9. Ne5 {[%clk 0:03:00]}  Rc8 {[%clk 0:02:57]} 10. Qd2 {[%clk 0:02:57]}  Be7 {[%clk 0:02:54]} 11. f3 {[%clk 0:02:56]}  Nxe5 {[%clk 0:02:50]} 12. dxe5 {[%clk 0:02:56]}  Nd7 {[%clk 0:02:50]} 13. g4 {[%clk 0:02:55]}  Bg6 {[%clk 0:02:49]} 14. Bg3 {[%clk 0:02:55]}  Qb6+ {[%clk 0:02:44]} 15. Kg2 {[%clk 0:02:47]}  Qxb2 {[%clk 0:02:43]} 16. Na4 {[%clk 0:02:28]}  Qxc2 {[%clk 0:02:43]} 17. Qxc2 {[%clk 0:02:26]}  Rxc2 {[%clk 0:02:42]} 18. Rf2 {[%clk 0:02:21]}  b5 {[%clk 0:02:42]} 19. Bxb5 {[%clk 0:02:18]}  Rxf2+ {[%clk 0:02:39]} 20. Kxf2 {[%clk 0:02:19]}  axb5 {[%clk 0:02:40]} 21. Nc3 {[%clk 0:02:20]}  b4 {[%clk 0:02:36]} 22. Nb5 {[%clk 0:02:20]}  O-O {[%clk 0:02:34]} 23. Rc1 {[%clk 0:02:19]}  Bc5+ {[%clk 0:02:34]} 24. Kg2 {[%clk 0:02:18]}  Ra8 {[%clk 0:02:34]} 25. f4 {[%clk 0:02:17]}  Be4+ {[%clk 0:02:32]} 26. Kh3 {[%clk 0:02:16]}  Rxa2 {[%clk 0:02:31]} 27. Nd6 {[%clk 0:02:16]}  b3 {[%clk 0:02:28]} 0-1


[Site "https://www.chess.com"]

[Event "Titled Tuesday Blitz March 15 Early 2022"]
[White "Bluebaum, Matthias"]
[Black "Yedidia, Daniel"]
[WhiteFideId "24651516"]
[BlackFideId "30905907"]
[WhiteElo "2550"]
[BlackElo "2480"]
[Result "1-0"]
[Round "01"]
[TimeControl "180+1"]
[Date "2022.03.15"]
[WhiteClock "0:00:08"]
[BlackClock "0:00:05"]

1. b3 {[%clk 0:02:58]}  d5 {[%clk 0:02:56]} 2. Bb2 {[%clk 0:02:59]}  c5 {[%clk 0:02:56]} 3. e3 {[%clk 0:02:59]}  a6 {[%clk 0:02:56]} 4. Nf3 {[%clk 0:02:59]}  Nc6 {[%clk 0:02:57]} 5. d4 {[%clk 0:03:00]}  Nf6 {[%clk 0:02:56]} 6. Be2 {[%clk 0:02:58]}  Bf5 {[%clk 0:02:53]} 7. dxc5 {[%clk 0:02:51]}  e6 {[%clk 0:02:52]} 8. Nd4 {[%clk 0:02:51]}  Bxc5 {[%clk 0:02:44]} 9. Nxf5 {[%clk 0:02:51]}  exf5 {[%clk 0:02:45]} 10. O-O {[%clk 0:02:50]}  O-O {[%clk 0:02:45]} 11. Nd2 {[%clk 0:02:46]}  d4 {[%clk 0:02:44]} 12. exd4 {[%clk 0:02:46]}  Bxd4 {[%clk 0:02:40]} 13. c3 {[%clk 0:02:46]}  Ba7 {[%clk 0:02:35]} 14. Qc2 {[%clk 0:02:42]}  Re8 {[%clk 0:02:22]} 15. Nf3 {[%clk 0:02:14]}  Ne4 {[%clk 0:02:15]} 16. Rad1 {[%clk 0:02:08]}  Qb6 {[%clk 0:02:14]} 17. Bd3 {[%clk 0:01:54]}  Rad8 {[%clk 0:02:12]} 18. Bc1 {[%clk 0:01:27]}  Qa5 {[%clk 0:01:57]} 19. b4 {[%clk 0:01:16]}  Qc7 {[%clk 0:01:48]} 20. a3 {[%clk 0:01:15]}  h6 {[%clk 0:01:44]} 21. c4 {[%clk 0:01:14]}  Bb8 {[%clk 0:01:31]} 22. g3 {[%clk 0:01:08]}  Qe7 {[%clk 0:01:22]} 23. c5 {[%clk 0:01:06]}  Ne5 {[%clk 0:01:18]} 24. Bxe4 {[%clk 0:00:53]}  fxe4 {[%clk 0:01:14]} 25. Qxe4 {[%clk 0:00:53]}  Rxd1 {[%clk 0:01:08]} 26. Rxd1 {[%clk 0:00:54]}  Qf6 {[%clk 0:01:07]} 27. Nxe5 {[%clk 0:00:51]}  Bxe5 {[%clk 0:01:06]} 28. f4 {[%clk 0:00:41]}  Bd4+ {[%clk 0:01:01]} 29. Qxd4 {[%clk 0:00:40]}  Re1+ {[%clk 0:01:01]} 30. Kf2 {[%clk 0:00:37]}  Qxd4+ {[%clk 0:00:55]} 31. Rxd4 {[%clk 0:00:38]}  Rxc1 {[%clk 0:00:56]} 32. Rd8+ {[%clk 0:00:38]}  Kh7 {[%clk 0:00:56]} 33. Rd7 {[%clk 0:00:39]}  Ra1 {[%clk 0:00:55]} 34. Rxf7 {[%clk 0:00:35]}  Ra2+ {[%clk 0:00:52]} 35. Kg1 {[%clk 0:00:35]}  Rxa3 {[%clk 0:00:52]} 36. Rxb7 {[%clk 0:00:35]}  Kg6 {[%clk 0:00:49]} 37. c6 {[%clk 0:00:29]}  Kf5 {[%clk 0:00:47]} 38. c7 {[%clk 0:00:29]}  Rc3 {[%clk 0:00:47]} 39. Kf2 {[%clk 0:00:29]}  Ke4 {[%clk 0:00:47]} 40. Kg2 {[%clk 0:00:27]}  g5 {[%clk 0:00:45]} 41. fxg5 {[%clk 0:00:26]}  hxg5 {[%clk 0:00:46]} 42. Kh3 {[%clk 0:00:27]}  Kf3 {[%clk 0:00:44]} 43. c8=Q {[%clk 0:00:20]}  Rxc8 {[%clk 0:00:43]} 44. Rf7+ {[%clk 0:00:21]}  Ke4 {[%clk 0:00:43]} 45. Kg4 {[%clk 0:00:22]}  Rh8 {[%clk 0:00:39]} 46. Rf6 {[%clk 0:00:22]}  Rxh2 {[%clk 0:00:36]} 47. Rxa6 {[%clk 0:00:22]}  Rb2 {[%clk 0:00:36]} 48. Re6+ {[%clk 0:00:21]}  Kd5 {[%clk 0:00:37]} 49. Rb6 {[%clk 0:00:22]}  Rb3 {[%clk 0:00:37]} 50. Rb8 {[%clk 0:00:17]}  Kc6 {[%clk 0:00:35]} 51. b5+ {[%clk 0:00:17]}  Kc7 {[%clk 0:00:35]} 52. Rg8 {[%clk 0:00:16]}  Rxb5 {[%clk 0:00:36]} 53. Rxg5 {[%clk 0:00:17]}  Rb4+ {[%clk 0:00:32]} 54. Kh5 {[%clk 0:00:16]}  Kd6 {[%clk 0:00:32]} 55. Rf5 {[%clk 0:00:17]}  Ke6 {[%clk 0:00:32]} 56. g4 {[%clk 0:00:17]}  Rb8 {[%clk 0:00:30]} 57. Rf1 {[%clk 0:00:17]}  Rh8+ {[%clk 0:00:28]} 58. Kg5 {[%clk 0:00:17]}  Rg8+ {[%clk 0:00:28]} 59. Kh5 {[%clk 0:00:16]}  Rh8+ {[%clk 0:00:28]} 60. Kg5 {[%clk 0:00:16]}  Rg8+ {[%clk 0:00:28]} 61. Kh4 {[%clk 0:00:16]}  Rh8+ {[%clk 0:00:24]} 62. Kg3 {[%clk 0:00:17]}  Rg8 {[%clk 0:00:25]} 63. Rf4 {[%clk 0:00:17]}  Ke5 {[%clk 0:00:21]} 64. Rf5+ {[%clk 0:00:15]}  Ke6 {[%clk 0:00:22]} 65. Kf4 {[%clk 0:00:14]}  Rb8 {[%clk 0:00:21]} 66. Kg3 {[%clk 0:00:07]}  Rg8 {[%clk 0:00:17]} 67. Rf3 {[%clk 0:00:08]}  Ke5 {[%clk 0:00:16]} 68. Rf4 {[%clk 0:00:09]}  Ke6 {[%clk 0:00:16]} 69. Kh4 {[%clk 0:00:09]}  Ke5 {[%clk 0:00:15]} 70. Rf5+ {[%clk 0:00:09]}  Ke6 {[%clk 0:00:16]} 71. Rf4 {[%clk 0:00:04]}  Ke5 {[%clk 0:00:16]} 72. Ra4 {[%clk 0:00:05]}  Rh8+ {[%clk 0:00:15]} 73. Kg5 {[%clk 0:00:05]}  Rg8+ {[%clk 0:00:13]} 74. Kh6 {[%clk 0:00:06]}  Kf6 {[%clk 0:00:12]} 75. g5+ {[%clk 0:00:06]}  Kf5 {[%clk 0:00:11]} 76. Ra5+ {[%clk 0:00:07]}  Ke6 {[%clk 0:00:10]} 77. g6 {[%clk 0:00:08]}  Rh8+ {[%clk 0:00:04]} 78. Kg7 {[%clk 0:00:08]}  Rb8 {[%clk 0:00:05]} 79. Kh7 {[%clk 0:00:08]}  Kf6 {[%clk 0:00:04]} 80. Ra6+ {[%clk 0:00:07]}  Kg5 {[%clk 0:00:05]} 81. g7 {[%clk 0:00:08]} 1-0


[Site "https://www.chess.com"]

[Event "Titled Tuesday Blitz March 15 Early 2022"]
[White "Borodavkin, Anatoly"]
[Black "Hamitevici, Vladimir"]
[WhiteFideId "14150662"]
[BlackFideId "13902393"]
[WhiteElo "1845"]
[BlackElo "2359"]
[Result "0-1"]
[Round "01"]
[TimeControl "180+1"]
[Date "2022.03.15"]
[WhiteClock "0:00:02"]
[BlackClock "0:00:07"]

1. e4 {[%clk 0:03:00]}  g6 {[%clk 0:02:58]} 2. d4 {[%clk 0:03:00]}  Bg7 {[%clk 0:02:59]} 3. f4 {[%clk 0:02:59]}  d5 {[%clk 0:02:57]} 4. e5 {[%clk 0:02:56]}  h5 {[%clk 0:02:52]} 5. Nf3 {[%clk 0:02:53]}  Nh6 {[%clk 0:02:52]} 6. Bd3 {[%clk 0:02:50]}  Bf5 {[%clk 0:02:47]} 7. O-O {[%clk 0:02:48]}  e6 {[%clk 0:02:47]} 8. c3 {[%clk 0:02:43]}  O-O {[%clk 0:02:40]} 9. h3 {[%clk 0:02:41]}  Nd7 {[%clk 0:02:36]} 10. Na3 {[%clk 0:02:37]}  a6 {[%clk 0:02:34]} 11. Nc2 {[%clk 0:02:36]}  c5 {[%clk 0:02:34]} 12. Be3 {[%clk 0:02:27]}  Rc8 {[%clk 0:02:22]} 13. Bf2 {[%clk 0:02:21]}  b5 {[%clk 0:02:10]} 14. Ne3 {[%clk 0:02:12]}  Bxd3 {[%clk 0:01:56]} 15. Qxd3 {[%clk 0:02:12]}  cxd4 {[%clk 0:01:49]} 16. cxd4 {[%clk 0:02:03]}  Qb6 {[%clk 0:01:44]} 17. Rfc1 {[%clk 0:01:56]}  b4 {[%clk 0:01:42]} 18. b3 {[%clk 0:01:49]}  Qb7 {[%clk 0:01:32]} 19. Qd2 {[%clk 0:01:47]}  a5 {[%clk 0:01:27]} 20. Rxc8 {[%clk 0:01:46]}  Rxc8 {[%clk 0:01:28]} 21. Rc1 {[%clk 0:01:46]}  Bf8 {[%clk 0:01:24]} 22. Rc2 {[%clk 0:01:40]}  Nb6 {[%clk 0:01:16]} 23. Qc1 {[%clk 0:01:37]}  Rxc2 {[%clk 0:01:15]} 24. Qxc2 {[%clk 0:01:36]}  Qc8 {[%clk 0:01:13]} 25. Qxc8 {[%clk 0:01:19]}  Nxc8 {[%clk 0:01:13]} 26. Kf1 {[%clk 0:01:16]}  Na7 {[%clk 0:01:09]} 27. Ke2 {[%clk 0:01:11]}  Nb5 {[%clk 0:01:09]} 28. Be1 {[%clk 0:01:03]}  Be7 {[%clk 0:01:05]} 29. Kd3 {[%clk 0:01:00]}  Bd8 {[%clk 0:01:01]} 30. Bd2 {[%clk 0:00:56]}  Kg7 {[%clk 0:00:47]} 31. Be1 {[%clk 0:00:55]}  Bb6 {[%clk 0:00:47]} 32. Bd2 {[%clk 0:00:49]}  Ng8 {[%clk 0:00:47]} 33. Nd1 {[%clk 0:00:38]}  Ne7 {[%clk 0:00:41]} 34. g4 {[%clk 0:00:38]}  hxg4 {[%clk 0:00:31]} 35. hxg4 {[%clk 0:00:38]}  Nc6 {[%clk 0:00:31]} 36. Be3 {[%clk 0:00:37]}  f6 {[%clk 0:00:23]} 37. Bf2 {[%clk 0:00:25]}  fxe5 {[%clk 0:00:17]} 38. fxe5 {[%clk 0:00:25]}  Bd8 {[%clk 0:00:15]} 39. Be3 {[%clk 0:00:24]}  Kf8 {[%clk 0:00:13]} 40. Bh6+ {[%clk 0:00:21]}  Kf7 {[%clk 0:00:12]} 41. Be3 {[%clk 0:00:20]}  Bb6 {[%clk 0:00:13]} 42. Bf2 {[%clk 0:00:19]}  Bc7 {[%clk 0:00:11]} 43. Be3 {[%clk 0:00:19]}  Bd8 {[%clk 0:00:11]} 44. Bf2 {[%clk 0:00:18]}  Be7 {[%clk 0:00:11]} 45. Be3 {[%clk 0:00:18]}  Bf8 {[%clk 0:00:12]} 46. Bf2 {[%clk 0:00:18]}  Bh6 {[%clk 0:00:12]} 47. Be3 {[%clk 0:00:18]}  Bxe3 {[%clk 0:00:12]} 48. Kxe3 {[%clk 0:00:18]}  Ke7 {[%clk 0:00:09]} 49. Kd3 {[%clk 0:00:19]}  Nca7 {[%clk 0:00:07]} 50. g5 {[%clk 0:00:18]}  Nc8 {[%clk 0:00:08]} 51. Nh4 {[%clk 0:00:17]}  Kf7 {[%clk 0:00:08]} 52. Nf3 {[%clk 0:00:17]}  Ne7 {[%clk 0:00:08]} 53. Nb2 {[%clk 0:00:15]}  Nf5 {[%clk 0:00:08]} 54. Na4 {[%clk 0:00:14]}  Ke7 {[%clk 0:00:09]} 55. Nc5 {[%clk 0:00:14]}  Nc3 {[%clk 0:00:09]} 56. Nb7 {[%clk 0:00:12]}  Nxa2 {[%clk 0:00:09]} 57. Nxa5 {[%clk 0:00:12]}  Nc1+ {[%clk 0:00:10]} 58. Kd2 {[%clk 0:00:10]}  Ne2 {[%clk 0:00:10]} 59. Kd3 {[%clk 0:00:09]}  Nf4+ {[%clk 0:00:06]} 60. Kd2 {[%clk 0:00:09]}  Nh3 {[%clk 0:00:03]} 61. Nc6+ {[%clk 0:00:08]}  Kd7 {[%clk 0:00:04]} 62. Nxb4 {[%clk 0:00:09]}  Ng3 {[%clk 0:00:05]} 63. Kd3 {[%clk 0:00:08]}  Ne4 {[%clk 0:00:06]} 64. Nc2 {[%clk 0:00:07]}  Nexg5 {[%clk 0:00:06]} 65. Nxg5 {[%clk 0:00:07]}  Nxg5 {[%clk 0:00:07]} 66. Ne3 {[%clk 0:00:07]}  Ne4 {[%clk 0:00:07]} 67. Ng4 {[%clk 0:00:07]}  g5 {[%clk 0:00:08]} 68. Ke3 {[%clk 0:00:06]}  Kc6 {[%clk 0:00:08]} 69. Nh6 {[%clk 0:00:03]}  Ng3 {[%clk 0:00:06]} 70. Nf7 {[%clk 0:00:02]}  Nf5+ {[%clk 0:00:06]} 71. Kd3 {[%clk 0:00:02]}  g4 {[%clk 0:00:07]} 0-1


[Site "https://www.chess.com"]

[Event "Titled Tuesday Blitz March 15 Early 2022"]
[White "Bortnyk, Olexandr"]
[Black "Budrewicz, Krzysztof"]
[WhiteFideId "14120828"]
[BlackFideId "1127950"]
[WhiteElo "2723"]
[BlackElo "2248"]
[Result "1-0"]
[Round "01"]
[TimeControl "180+1"]
[Date "2022.03.15"]
[WhiteClock "0:00:02"]
[BlackClock "0:00:04"]

1. e4 {[%clk 0:02:56]}  c5 {[%clk 0:02:57]} 2. c3 {[%clk 0:02:51]}  Nf6 {[%clk 0:02:54]} 3. e5 {[%clk 0:02:50]}  Nd5 {[%clk 0:02:54]} 4. d4 {[%clk 0:02:50]}  cxd4 {[%clk 0:02:46]} 5. Nf3 {[%clk 0:02:49]}  e6 {[%clk 0:02:38]} 6. cxd4 {[%clk 0:02:49]}  d6 {[%clk 0:02:37]} 7. Bc4 {[%clk 0:02:48]}  Nb6 {[%clk 0:02:31]} 8. Bd3 {[%clk 0:02:46]}  N8d7 {[%clk 0:02:31]} 9. O-O {[%clk 0:02:41]}  dxe5 {[%clk 0:02:29]} 10. dxe5 {[%clk 0:02:36]}  Nc5 {[%clk 0:02:29]} 11. Bc2 {[%clk 0:02:35]}  Qxd1 {[%clk 0:02:28]} 12. Rxd1 {[%clk 0:02:36]}  Bd7 {[%clk 0:02:28]} 13. Nc3 {[%clk 0:02:27]}  a5 {[%clk 0:02:17]} 14. Be3 {[%clk 0:01:58]}  Be7 {[%clk 0:02:05]} 15. Ne4 {[%clk 0:01:49]}  Nxe4 {[%clk 0:01:50]} 16. Bxe4 {[%clk 0:01:50]}  Nc4 {[%clk 0:01:50]} 17. Bd4 {[%clk 0:01:37]}  a4 {[%clk 0:01:02]} 18. Bxb7 {[%clk 0:01:29]}  Rb8 {[%clk 0:01:00]} 19. Ba6 {[%clk 0:01:15]}  Na5 {[%clk 0:00:50]} 20. Rac1 {[%clk 0:01:07]}  Nc6 {[%clk 0:00:38]} 21. Bc3 {[%clk 0:01:01]}  Bc5 {[%clk 0:00:35]} 22. Ng5 {[%clk 0:00:57]}  Ke7 {[%clk 0:00:32]} 23. Rd2 {[%clk 0:00:38]}  h6 {[%clk 0:00:29]} 24. Nxf7 {[%clk 0:00:38]}  Rhf8 {[%clk 0:00:24]} 25. Nd6 {[%clk 0:00:35]}  Nb4 {[%clk 0:00:20]} 26. Bc4 {[%clk 0:00:30]}  Bc6 {[%clk 0:00:20]} 27. a3 {[%clk 0:00:24]}  Nd5 {[%clk 0:00:20]} 28. Bd4 {[%clk 0:00:24]}  Bxd4 {[%clk 0:00:20]} 29. Rxd4 {[%clk 0:00:25]}  Rxb2 {[%clk 0:00:18]} 30. Bxd5 {[%clk 0:00:24]}  Bxd5 {[%clk 0:00:16]} 31. f3 {[%clk 0:00:18]}  Rd8 {[%clk 0:00:16]} 32. Rxa4 {[%clk 0:00:17]}  Rd7 {[%clk 0:00:14]} 33. Rf4 {[%clk 0:00:16]}  Rxd6 {[%clk 0:00:07]} 34. exd6+ {[%clk 0:00:15]}  Kxd6 {[%clk 0:00:07]} 35. Rf7 {[%clk 0:00:11]}  g5 {[%clk 0:00:07]} 36. h3 {[%clk 0:00:08]}  Ra2 {[%clk 0:00:05]} 37. Rh7 {[%clk 0:00:08]}  Rxa3 {[%clk 0:00:05]} 38. Rxh6 {[%clk 0:00:09]}  Ke5 {[%clk 0:00:05]} 39. Re1+ {[%clk 0:00:07]}  Kf5 {[%clk 0:00:04]} 40. Rh8 {[%clk 0:00:06]}  Ra2 {[%clk 0:00:02]} 41. Rf8+ {[%clk 0:00:06]}  Kg6 {[%clk 0:00:03]} 42. Kh2 {[%clk 0:00:07]}  Kg7 {[%clk 0:00:02]} 43. Re8 {[%clk 0:00:03]}  Bxf3 {[%clk 0:00:02]} 44. Kg3 {[%clk 0:00:03]}  Bd5 {[%clk 0:00:03]} 45. h4 {[%clk 0:00:01]}  gxh4+ {[%clk 0:00:03]} 46. Kxh4 {[%clk 0:00:02]}  Ra4+ {[%clk 0:00:03]} 47. g4 {[%clk 0:00:02]}  Kf7 {[%clk 0:00:04]} 48. Rh8 {[%clk 0:00:02]}  Kg7 {[%clk 0:00:04]} 49. Rd8 {[%clk 0:00:02]}  Kf7 {[%clk 0:00:03]} 50. Kg5 {[%clk 0:00:01]}  Ke7 {[%clk 0:00:04]} 51. Rxd5 {[%clk 0:00:02]} 1-0


[Site "https://www.chess.com"]

[Event "Titled Tuesday Blitz March 15 Early 2022"]
[White "Buscar, Michael"]
[Black "Srihari L R"]
[WhiteFideId "2603616"]
[BlackFideId "46617116"]
[WhiteElo "2010"]
[BlackElo "2121"]
[Result "0-1"]
[Round "01"]
[TimeControl "180+1"]
[Date "2022.03.15"]
[WhiteClock "0:01:16"]
[BlackClock "0:01:50"]

1. c4 {[%clk 0:02:56]}  e5 {[%clk 0:02:59]} 2. Nf3 {[%clk 0:02:55]}  d6 {[%clk 0:02:56]} 3. Nc3 {[%clk 0:02:54]}  f5 {[%clk 0:02:56]} 4. d3 {[%clk 0:02:54]}  Nf6 {[%clk 0:02:56]} 5. g3 {[%clk 0:02:54]}  Be7 {[%clk 0:02:56]} 6. Bg2 {[%clk 0:02:54]}  O-O {[%clk 0:02:57]} 7. O-O {[%clk 0:02:54]}  Nc6 {[%clk 0:02:57]} 8. Nd5 {[%clk 0:02:53]}  Nxd5 {[%clk 0:02:55]} 9. cxd5 {[%clk 0:02:54]}  Nb8 {[%clk 0:02:55]} 10. Nd2 {[%clk 0:02:52]}  Nd7 {[%clk 0:02:55]} 11. a4 {[%clk 0:02:51]}  a5 {[%clk 0:02:54]} 12. Nc4 {[%clk 0:02:51]}  b6 {[%clk 0:02:53]} 13. f4 {[%clk 0:02:49]}  Bf6 {[%clk 0:02:52]} 14. e4 {[%clk 0:02:48]}  fxe4 {[%clk 0:02:50]} 15. dxe4 {[%clk 0:02:48]}  Ba6 {[%clk 0:02:50]} 16. b3 {[%clk 0:02:45]}  exf4 {[%clk 0:02:43]} 17. gxf4 {[%clk 0:02:44]}  Bxa1 {[%clk 0:02:42]} 18. Qg4 {[%clk 0:02:33]}  Bd4+ {[%clk 0:02:40]} 19. Kh1 {[%clk 0:02:33]}  Nf6 {[%clk 0:02:39]} 20. Qg3 {[%clk 0:02:30]}  Bxc4 {[%clk 0:02:34]} 21. bxc4 {[%clk 0:02:29]}  Qe8 {[%clk 0:02:34]} 22. Re1 {[%clk 0:02:21]}  Qh5 {[%clk 0:02:29]} 23. Bf3 {[%clk 0:02:19]}  Qg6 {[%clk 0:02:21]} 24. Qh3 {[%clk 0:02:19]}  Rae8 {[%clk 0:02:16]} 25. f5 {[%clk 0:02:14]}  Qf7 {[%clk 0:02:14]} 26. Re2 {[%clk 0:02:11]}  Nd7 {[%clk 0:02:11]} 27. Bh5 {[%clk 0:02:08]}  g6 {[%clk 0:02:00]} 28. Bh6 {[%clk 0:01:32]}  gxh5 {[%clk 0:01:56]} 29. Rg2+ {[%clk 0:01:27]}  Kh8 {[%clk 0:01:56]} 30. f6 {[%clk 0:01:16]}  Bxf6 {[%clk 0:01:50]} 0-1


[Site "https://www.chess.com"]